bitfinex-derivatives/quotes_SOLF0:USTF0_20250703
["timestamp","ask_amount","ask_price","bid_price","bid_amount"]
[1751513201025,6.4906,154.02,153.99,6.4917]
[1751513202121,4.5373,154.04,154.0,6.4913]
[1751513202122,6.4902,154.03,154.0,6.4913]
[1751513202327,4.5373,154.04,154.01,45.24]
[1751513202527,48.88240863,154.09,154.01,45.24]
[1751513202730,6.4903,154.03,154.01,45.24]
[1751513204720,6.4903,154.03,154.01,51.7309]
[1751513204924,6.4903,154.03,154.01,45.24]
[1751513205329,6.4898,154.04,154.01,45.24]
[1751513205630,3.71891666,154.07,154.01,45.24]
[1751513206530,6.4903,154.03,154.01,45.24]
[1751513211027,3.71891666,154.03,154.0,0.04475479]
[1751513211337,4.6356,154.02,154.0,0.04475479]
[1751513212031,6.4909,154.01,154.0,0.04475479]
[1751513215733,6.4922,153.98,153.97,45.22]
[1751513217531,0.0464582,153.99,153.92,571.41351666]
[1751513217838,6.4937,153.95,153.94,45.22]
[1751513220333,6.4943,153.93,153.92,561.2]
[1751513220541,3.71891666,153.98,153.92,606.18]
[1751513221341,6.4937,153.95,153.92,612.6746]
[1751513221840,6.4939,153.94,153.92,612.6746]
[1751513222041,0.04979544,153.97,153.92,612.6746]
[1751513222542,0.04979544,153.97,153.92,606.18]
[1751513223143,2.26029544,153.97,153.92,606.18]
[1751513223537,6.4943,153.93,153.92,606.18]
[1751513223833,3.71891666,153.94,153.88,3.71891666]
[1751513224040,6.4964,153.88,153.87,45.0]
[1751513224340,3.71891666,153.9,153.84,561.02]
[1751513224741,6.4971,153.87,153.84,561.02]
[1751513224940,3.71891666,153.9,153.84,561.02]
[1751513225241,0.04772855,153.89,153.84,561.02]
[1751513228146,0.04772855,153.89,153.84,750.04]
[1751513228446,6.4975,153.86,153.84,750.04]
[1751513228643,2.35812855,153.89,153.84,750.04]
[1751513229745,3.71891666,153.88,153.84,561.02]
[1751513229943,6.4977,153.85,153.84,561.02]
[1751513230147,5.92251666,153.88,153.83,45.0]
[1751513230543,6.4981,153.84,153.83,45.0]
[1751513230744,3.71891666,153.86,153.79,10.21901666]
[1751513231039,3.71891666,153.86,153.8,45.02]
[1751513231241,3.71891666,153.86,153.8,234.04]
[1751513231549,0.04457565,153.84,153.8,240.5397]
[1751513232648,0.04457565,153.84,153.81,188.96]
[1751513232944,6.4988,153.83,153.81,189.0]
[1751513234943,0.04457565,153.84,153.81,189.0]
[1751513235148,0.04457565,153.84,153.81,188.92]
[1751513236249,6.4989,153.83,153.81,188.92]
[1751513236854,0.04457565,153.84,153.81,192.63891666]
[1751513237353,0.04457565,153.84,153.81,188.9]
[1751513237546,6.4988,153.83,153.81,188.9]
[1751513237745,0.04457565,153.84,153.8,45.02]
[1751513237952,0.04457565,153.84,153.8,233.92]
[1751513238353,6.4994,153.81,153.8,45.02]
[1751513239757,2.3396,153.83,153.8,45.02]
[1751513241054,6.4992,153.82,153.8,45.02]
[1751513241458,6.4992,153.82,153.8,234.0]
[1751513242660,6.4986,153.83,153.8,240.4997]
[1751513243359,0.04457565,153.84,153.8,234.0]
[1751513243760,6.4986,153.83,153.8,234.0]
[1751513244559,6.54277565,153.84,153.8,234.0]
[1751513245163,6.54277565,153.84,153.81,6.4991]
[1751513247058,6.4985,153.83,153.8,240.4996]
[1751513248662,6.499,153.82,153.8,234.0]
[1751513249766,6.4994,153.81,153.8,234.0]
[1751513250264,6.4994,153.81,153.8,233.94]
[1751513250464,6.4994,153.81,153.8,45.02]
[1751513250666,3.71891666,153.83,153.8,45.02]
[1751513251369,6.4994,153.81,153.8,45.02]
[1751513256470,6.5006,153.78,153.76,606.18]
[1751513256666,3.71891666,153.82,153.77,188.8]
[1751513256865,3.71891666,153.8,153.76,44.96]
[1751513257062,6.501,153.77,153.76,44.96]
[1751513261868,6.5028,153.73,153.72,44.96]
[1751513267473,6.5035,153.72,153.69,561.58]
[1751513267774,6.5035,153.72,153.69,750.5]
[1751513268174,6.5035,153.72,153.69,757.0044]
[1751513268574,6.5035,153.72,153.69,568.0844]
[1751513268774,6.5036,153.71,153.69,750.48]
[1751513269479,6.5033,153.72,153.69,756.9844]
[1751513270676,6.5033,153.72,153.69,750.48]
[1751513271482,6.5033,153.72,153.69,756.9842]
[1751513271680,6.5036,153.71,153.69,750.48]
[1751513272782,6.504,153.7,153.69,750.48]
[1751513272983,3.71891666,153.73,153.69,188.9]
[1751513273384,6.5038,153.71,153.69,188.9]
[1751513273685,0.04890846,153.74,153.69,188.9]
[1751513273885,3.76782512,153.74,153.7,188.84]
[1751513276080,3.76782512,153.74,153.69,195.3643]
[1751513276281,6.5036,153.71,153.69,188.86]
[1751513280885,6.504,153.7,153.69,188.86]
[1751513281282,6.504,153.7,153.68,44.98]
[1751513281487,6.504,153.7,153.69,188.88]
[1751513282787,0.04466484,153.71,153.69,188.88]
[1751513283089,6.54846484,153.71,153.69,188.88]
[1751513283587,0.04466484,153.71,153.68,44.98]
[1751513283791,0.04466484,153.71,153.68,233.86]
[1751513283990,6.5044,153.69,153.68,44.98]
[1751513284189,6.5044,153.69,153.68,233.86]
[1751513285188,6.5042,153.7,153.68,233.86]
[1751513285987,6.5042,153.7,153.68,240.3648]
[1751513286386,0.04466484,153.71,153.68,233.86]
[1751513287083,6.54826484,153.71,153.68,240.3646]
[1751513287789,6.54826484,153.71,153.68,51.4846]
[1751513288089,6.54826484,153.71,153.69,188.88]
[1751513292088,6.504,153.7,153.69,188.88]
[1751513293090,6.54836484,153.71,153.69,188.88]
[1751513294591,0.04466484,153.71,153.69,195.3843]
[1751513295392,0.04466484,153.71,153.7,6.504]
[1751513295593,0.04466484,153.71,153.69,188.88]
[1751513295792,0.04466484,153.71,153.69,195.3842]
[1751513298293,6.54836484,153.71,153.69,195.3842]
[1751513299296,0.04466484,153.71,153.69,195.3842]
[1751513300095,6.54836484,153.71,153.69,195.3842]
[1751513301099,0.04466484,153.71,153.69,195.3842]
[1751513303495,0.04466484,153.71,153.69,188.88]
[1751513303894,2.42836121,153.71,153.68,44.98]
[1751513304094,6.5044,153.7,153.68,233.84]
[1751513306100,0.04466484,153.71,153.68,233.84]
[1751513306604,3.76918128,153.71,153.68,233.84]
[1751513307098,6.5044,153.69,153.68,233.84]
[1751513307401,3.76918128,153.71,153.66,188.86]
[1751513307596,6.5056,153.67,153.66,188.86]
[1751513307996,3.72451644,153.69,153.64,44.92]
[1751513308197,6.5061,153.65,153.64,233.78]
[1751513308595,6.5061,153.65,153.64,44.92]
[1751513308804,3.72451644,153.65,153.6,50.8166999]
[1751513309004,3.72451644,153.65,153.61,188.86]
[1751513309206,6.5074,153.62,153.61,188.86]
[1751513309401,6.5074,153.62,153.6,233.78]
[1751513311099,6.5074,153.62,153.6,44.92]
[1751513311300,6.5074,153.62,153.6,233.8]
[1751513316908,6.5074,153.62,153.6,44.92]
[1751513317113,6.5074,153.62,153.6,233.84]
[1751513319404,6.5078,153.61,153.6,233.84]
[1751513319810,6.5078,153.61,153.6,44.92]
[1751513320104,6.5087,153.59,153.56,55.17441644]
[1751513320308,6.5087,153.59,153.57,188.92]
[1751513320508,2.3205,153.66,153.58,188.92]
[1751513320810,3.72451644,153.65,153.58,192.64451644]
[1751513321010,6.5077,153.62,153.59,6.5085]
[1751513321210,6.5077,153.62,153.6,188.92]
[1751513322010,6.5078,153.61,153.6,188.92]
[1751513326815,0.0488926,153.64,153.6,188.92]
[1751513328015,6.5078,153.61,153.6,188.92]
[1751513328512,0.0488926,153.64,153.6,188.92]
[1751513328816,0.0488926,153.64,153.61,48.66451644]
[1751513329016,0.0488926,153.64,153.63,10.23151644]
[1751513329315,0.0488926,153.64,153.63,199.15151644]
[1751513329517,0.0488926,153.64,153.63,192.64451644]
[1751513331218,0.0488926,153.64,153.63,199.15151644]
[1751513333612,8.14061644,153.7,153.65,6.5061]
[1751513333819,4.4161,153.7,153.66,188.9]
[1751513334020,6.5045,153.69,153.66,188.9]
[1751513334421,4.4161,153.7,153.66,188.9]
[1751513335619,6.5047,153.69,153.66,195.4055]
[1751513335824,6.5047,153.69,153.66,195.44670904]
[1751513336225,6.5049,153.68,153.66,195.44670904]
[1751513337730,6.5049,153.68,153.66,240.38670904]
[1751513340231,6.5049,153.68,153.66,233.88120904]
[1751513340832,0.04132658,153.69,153.66,240.38680904]
[1751513341927,6.5049,153.68,153.66,233.88120904]
[1751513342425,6.5053,153.67,153.66,233.88120904]
[1751513344032,6.505,153.68,153.66,233.88120904]
[1751513345333,6.5053,153.67,153.66,44.98120904]
[1751513345636,6.5053,153.67,153.66,0.04120904]
[1751513346036,6.507,153.63,153.62,44.92]
[1751513346240,6.507,153.63,153.62,233.78]
[1751513347236,6.507,153.63,153.62,44.92]
[1751513347529,3.72451644,153.7,153.62,233.78]
[1751513347729,3.72451644,153.7,153.63,10.23131644]
[1751513347933,0.04293288,153.64,153.63,10.23131644]
[1751513348138,6.5058,153.66,153.63,10.23131644]
[1751513348536,0.04454048,153.65,153.63,10.23131644]
[1751513348937,0.04454048,153.65,153.63,3.72451644]
[1751513349732,6.55074048,153.65,153.63,3.72451644]
[1751513350541,6.5065,153.64,153.63,3.72451644]
[1751513350743,6.5065,153.64,153.62,233.78]
[1751513351042,0.04454048,153.65,153.63,188.86]
[1751513351243,0.04454048,153.65,153.62,44.92]
[1751513351443,0.04454048,153.65,153.62,233.76]
[1751513351645,6.507,153.63,153.62,233.76]
[1751513351944,6.507,153.63,153.62,44.92]
[1751513356344,6.5078,153.61,153.6,188.86]
[1751513356745,3.72451644,153.64,153.58,44.92]
[1751513356946,6.5087,153.59,153.58,233.78]
[1751513357148,3.72451644,153.64,153.58,233.78]
[1751513357552,0.0414536,153.6,153.58,233.78]
[1751513358052,6.5499536,153.6,153.57,6.5094]
[1751513358251,6.5499536,153.6,153.58,188.86]
[1751513358551,0.0414536,153.6,153.58,188.86]
[1751513358746,6.5087,153.59,153.58,188.88]
[1751513362255,6.5087,153.59,153.57,44.92]
[1751513362455,6.5087,153.59,153.58,188.88]
[1751513363352,0.0414536,153.6,153.58,188.88]
[1751513364453,6.5091,153.58,153.57,233.8]
[1751513365158,3.72451644,153.59,153.52,5.92210662]
[1751513365456,5.91811644,153.59,153.53,188.88]
[1751513366058,0.04688092,153.58,153.53,188.88]
[1751513366555,6.5104,153.55,153.53,188.88]
[1751513367255,0.04688092,153.58,153.52,44.92]
[1751513367457,0.04688092,153.58,153.53,188.88]
[1751513367854,6.5102,153.56,153.54,188.9]
[1751513368353,6.5098,153.57,153.54,199.13531644]
[1751513369857,6.51,153.56,153.54,192.62451644]
[1751513370960,6.5097,153.57,153.54,199.13521644]
[1751513371462,0.04688092,153.58,153.54,199.13521644]
[1751513371659,6.5098,153.57,153.54,199.13521644]
[1751513371859,0.04688092,153.58,153.54,192.62451644]
[1751513373055,6.5098,153.57,153.54,199.13521644]
[1751513382871,6.51,153.56,153.54,199.13521644]
[1751513385975,6.5096,153.57,153.54,199.13521644]
[1751513386376,0.04688092,153.58,153.54,199.13521644]
[1751513386676,6.5096,153.57,153.54,199.13521644]
[1751513388177,6.5099,153.56,153.54,199.13521644]
[1751513389976,0.04688092,153.58,153.57,6.5095]
[1751513390280,0.04688092,153.58,153.56,3.72451644]
[1751513390480,0.04688092,153.58,153.57,188.9]
[1751513396889,0.04688092,153.58,153.57,195.4095]
[1751513397092,2.2306,153.64,153.57,233.82]
[1751513397488,2.2306,153.64,153.58,10.23331644]
[1751513397689,2.2306,153.64,153.6,3.72451644]
[1751513398690,6.5072,153.63,153.6,10.23241644]
[1751513400798,6.5074,153.62,153.6,3.72451644]
[1751513401590,6.5072,153.63,153.6,10.23271644]
[1751513401790,4.472,153.67,153.61,188.86]
[1751513402091,6.5059,153.66,153.62,48.62451644]
[1751513402290,6.5059,153.66,153.63,6.5069]
[1751513402688,6.5054,153.67,153.64,3.72451644]
[1751513403795,6.5054,153.67,153.64,10.23071644]
[1751513404989,2.3507,153.69,153.64,3.72451644]
[1751513405390,6.5049,153.68,153.65,6.5058]
[1751513405788,2.2456,153.71,153.66,3.72451644]
[1751513406092,111.59641132,153.73,153.66,3.72451644]
[1751513406288,111.59641132,153.73,153.68,3.72451644]
[1751513406495,6.5039,153.71,153.68,3.72451644]
[1751513407488,6.5041,153.7,153.67,51.4051]
[1751513407695,3.72451644,153.72,153.67,44.9]
[1751513408494,3.72451644,153.73,153.67,48.62451644]
[1751513408690,6.5043,153.7,153.67,55.12951644]
[1751513409292,6.5045,153.69,153.67,48.62451644]
[1751513409495,3.72451644,153.73,153.67,48.62451644]
[1751513409796,6.5047,153.69,153.67,48.62451644]
[1751513409996,3.72451644,153.73,153.67,44.9]
[1751513410396,6.5049,153.68,153.67,44.9]
[1751513412200,6.5058,153.66,153.63,55.11141644]
[1751513412598,3.72451644,153.69,153.63,48.60451644]
[1751513412793,6.5052,153.68,153.63,48.60451644]
[1751513412998,3.72451644,153.69,153.63,55.11141644]
[1751513414090,3.72451644,153.69,153.63,48.60451644]
[1751513415299,6.5062,153.65,153.63,48.60451644]
[1751513416400,6.5065,153.64,153.63,44.88]
[1751513423003,3.72451644,153.65,153.58,10.23351644]
[1751513423206,3.72451644,153.65,153.59,233.62]
[1751513423702,3.72451644,153.65,153.59,44.88]
[1751513423902,3.72451644,153.65,153.59,233.62]
[1751513424305,6.5081,153.61,153.59,233.62]
[1751513425203,6.5081,153.61,153.59,44.88]
[1751513425504,6.5082,153.6,153.59,44.88]
[1751513427904,2.2643,153.68,153.59,44.88]
[1751513428205,11.79888861,153.75,153.59,44.88]
[1751513428206,3.72451644,153.74,153.66,6.5055]
[1751513428408,6.5043,153.7,153.67,189.1]
[1751513428604,8.17241644,153.74,153.67,189.1]
[1751513429106,6.5048,153.69,153.67,189.1]
[1751513429700,3.72451644,153.7,153.65,44.9]
[1751513429904,3.72451644,153.68,153.61,48.62451644]
[1751513430200,3.72451644,153.68,153.62,189.4]
[1751513430405,8.21051644,153.68,153.62,189.4]
[1751513431104,6.5068,153.64,153.62,189.4]
[1751513434009,6.507,153.63,153.62,189.4]
[1751513434201,6.507,153.63,153.61,48.62451644]
[1751513434404,6.507,153.63,153.61,237.92451644]
[1751513436106,6.5074,153.62,153.61,237.92451644]
[1751513436707,6.5074,153.62,153.61,234.2]
[1751513438014,6.5071,153.63,153.61,234.12]
[1751513439514,6.5071,153.63,153.61,240.6278]
[1751513440719,2.1388,153.69,153.61,237.84451644]
[1751513440911,2.1388,153.69,153.64,3.72451644]
[1751513441112,2.1388,153.69,153.65,189.36]
[1751513441614,6.5055,153.67,153.65,189.36]
[1751513444317,8.22271644,153.72,153.66,3.72451644]
[1751513444517,4.4982,153.72,153.66,48.80451644]
[1751513444715,6.5053,153.67,153.66,48.80451644]
[1751513444915,4.4982,153.72,153.66,48.80451644]
[1751513445518,6.5047,153.69,153.66,55.31021644]
[1751513446119,6.5047,153.69,153.66,48.80451644]
[1751513446320,6.505,153.68,153.66,48.80451644]
[1751513448427,19.05934022,153.71,153.58,5.91771615]
[1751513448623,3.72730861,153.68,153.59,3.72730861]
[1751513448824,3.72730861,153.66,153.59,3.72730861]
[1751513449325,6.5073,153.63,153.59,10.23570861]
[1751513450124,3.72730861,153.66,153.59,10.23570861]
[1751513450125,6.01520861,153.67,153.59,3.72730861]
[1751513450624,6.01520861,153.67,153.61,6.5076]
[1751513451024,6.5066,153.64,153.61,6.5076]
[1751513453830,3.72730861,153.7,153.63,3.72730861]
[1751513454125,3.72730861,153.7,153.64,45.08]
[1751513454330,6.5052,153.68,153.64,51.5863]
[1751513454925,6.5054,153.67,153.64,51.5863]
[1751513460735,3.72730861,153.7,153.64,45.08]
[1751513460934,3.72730861,153.68,153.64,45.08]
[1751513461539,6.5061,153.65,153.64,45.08]
[1751513462238,6.5078,153.61,153.6,607.24]
[1751513466149,6.5078,153.61,153.6,45.08]
[1751513467648,6.5077,153.62,153.6,45.08]
[1751513467852,3.72730861,153.64,153.6,45.08]
[1751513472548,6.5077,153.62,153.6,45.08]
[1751513475049,6.5078,153.61,153.6,45.08]
[1751513477745,3.72730861,153.64,153.6,45.08]
[1751513478148,6.5073,153.63,153.6,51.5879]
[1751513478452,2.2879,153.67,153.6,238.16730861]
[1751513478653,6.506,153.66,153.63,6.5069]
[1751513478849,2.2879,153.67,153.62,3.72730861]
[1751513479147,6.5057,153.66,153.6,234.44]
[1751513479344,6.5057,153.66,153.62,3.72730861]
[1751513480753,6.5057,153.66,153.63,6.5066]
[1751513484249,3.72730861,153.7,153.62,3.72730861]
[1751513484956,6.505,153.68,153.64,6.5064]
[1751513486159,6.505,153.68,153.65,45.2]
[1751513486755,6.505,153.68,153.65,51.7061]
[1751513488261,6.5053,153.67,153.65,51.7061]
[1751513488659,6.5053,153.67,153.65,45.2]
[1751513492162,6.505,153.68,153.65,51.7058]
[1751513492363,3.72730861,153.7,153.65,45.2]
[1751513493464,6.5054,153.67,153.65,45.2]
[1751513494263,6.5054,153.67,153.65,51.706]
[1751513494460,6.505,153.68,153.65,51.706]
[1751513495168,6.5053,153.67,153.65,45.2]
[1751513495366,3.72730861,153.7,153.65,45.2]
[1751513495767,6.5051,153.68,153.65,51.7059]
[1751513496167,3.72730861,153.7,153.65,45.2]
[1751513497563,6.5054,153.67,153.65,45.2]
[1751513498567,6.5057,153.66,153.65,45.2]
[1751513499964,10.23300861,153.66,153.65,45.2]
[1751513500470,6.5068,153.64,153.61,51.4478]
[1751513501772,6.507,153.63,153.61,44.94]
[1751513502178,3.72730861,153.66,153.61,44.94]
[1751513502371,6.5074,153.62,153.61,44.94]
[1751513504973,2.1306,153.65,153.61,44.94]
[1751513505367,2.1306,153.65,153.62,6.5073]
[1751513505573,3.72730861,153.67,153.62,6.5073]
[1751513506175,6.5064,153.65,153.63,6.507]
[1751513506376,3.72730861,153.67,153.63,6.507]
[1751513506577,3.72730861,153.69,153.62,3.72730861]
[1751513507177,6.5059,153.66,153.62,3.72730861]
[1751513507977,6.5061,153.65,153.61,237.72730861]
[1751513508878,6.5061,153.65,153.62,6.5072]
[1751513510776,3.72730861,153.69,153.61,237.72730861]
[1751513511081,6.5067,153.64,153.61,244.23490861]
[1751513514178,6.5067,153.64,153.61,51.4476]
[1751513514386,3.72730861,153.67,153.61,44.94]
[1751513514781,6.5066,153.64,153.62,6.5073]
[1751513515285,6.5066,153.64,153.61,51.4477]
[1751513515487,3.72730861,153.67,153.61,48.66730861]
[1751513515984,2.3198,153.7,153.63,3.72730861]
[1751513516177,6.5051,153.68,153.63,192.68730861]
[1751513516380,6.5051,153.68,153.65,6.5058]
[1751513516781,3.72730861,153.69,153.61,48.66730861]
[1751513516980,3.72730861,153.69,153.63,6.5069]
[1751513517382,3.72730861,153.69,153.62,195.4872]
[1751513517987,6.5061,153.65,153.62,195.4872]
[1751513518386,3.72730861,153.69,153.63,6.5069]
[1751513518683,6.506,153.66,153.63,6.5069]
[1751513519789,6.5062,153.65,153.63,6.5069]
[1751513520290,6.5062,153.65,153.62,195.4872]
[1751513520591,6.5059,153.66,153.62,188.98]
[1751513521693,6.5059,153.66,153.63,6.5069]
[1751513523893,6.5055,153.67,153.64,6.5064]
[1751513525096,6.5057,153.66,153.64,6.5064]
[1751513525985,6.5057,153.66,153.63,6.5068]
[1751513527093,6.5057,153.66,153.62,188.98]
[1751513527094,6.5057,153.66,153.64,6.5065]
[1751513527803,6.5055,153.67,153.64,6.5065]
[1751513528304,2.3198,153.7,153.65,3.72730861]
[1751513528498,4.5436,153.72,153.67,3.72730861]
[1751513528705,9.80693217,153.73,153.67,3.72730861]
[1751513528899,6.5038,153.71,153.68,6.5048]
[1751513529700,3.72730861,153.73,153.67,10.23230861]
[1751513530101,3.72730861,153.74,153.67,10.23230861]
[1751513531203,6.5041,153.7,153.67,10.23230861]
[1751513531505,3.72730861,153.73,153.67,3.72730861]
[1751513532799,6.5038,153.71,153.67,3.72730861]
[1751513533005,12.00173217,153.75,153.67,3.72730861]
[1751513533304,5.92210861,153.75,153.67,3.72730861]
[1751513533604,5.92210861,153.75,153.69,6.5042]
[1751513534506,6.5034,153.72,153.69,6.5042]
[1751513535804,5.92210861,153.75,153.67,3.72730861]
[1751513536000,3.72730861,153.73,153.66,233.94]
[1751513536601,6.5043,153.7,153.67,6.5052]
[1751513538207,3.72730861,153.73,153.67,6.5052]
[1751513539405,6.5043,153.7,153.67,6.5052]
[1751513544112,3.72730861,153.73,153.66,44.98]
[1751513544411,3.72730861,153.71,153.66,44.98]
[1751513544612,6.5053,153.67,153.66,44.98]
[1751513547916,10.23260861,153.67,153.66,44.98]
[1751513548116,6.5067,153.64,153.62,44.96]
[1751513548610,6.5063,153.65,153.62,44.96]
[1751513549415,6.5063,153.65,153.62,51.4673]
[1751513549713,6.5066,153.64,153.62,44.96]
[1751513551514,6.507,153.63,153.62,44.96]
[1751513555012,6.5078,153.61,153.59,562.24]
[1751513555217,6.5078,153.61,153.59,568.7486]
[1751513555413,32.7707,153.64,153.6,3.72730861]
[1751513555620,30.4668,153.64,153.6,3.72730861]
[1751513556121,23.96,153.64,153.6,3.72730861]
[1751513556514,23.96,153.64,153.62,3.72730861]
[1751513556920,23.96,153.64,153.63,51.427]
[1751513558819,23.96,153.64,153.63,44.92]
[1751513559316,23.96,153.64,153.63,51.427]
[1751513566029,23.96,153.64,153.63,44.92]
[1751513568831,30.4665,153.64,153.63,44.92]
[1751513570630,23.96,153.64,153.63,44.92]
[1751513571232,23.96,153.64,153.63,51.427]
[1751513573135,6.5061,153.66,153.63,51.427]
[1751513573334,4.4888,153.68,153.64,6.5063]
[1751513574534,6.5054,153.67,153.64,6.5063]
[1751513577937,6.5058,153.66,153.63,55.15420861]
[1751513578234,4.4888,153.68,153.63,48.64730861]
[1751513578631,8.8091,153.68,153.65,6.5061]
[1751513579944,2.3039,153.68,153.65,3.72730861]
[1751513580242,8.39360861,153.72,153.65,3.72730861]
[1751513580535,4.6663,153.72,153.67,3.72730861]
[1751513580732,4.6663,153.72,153.63,44.92]
[1751513580733,4.6663,153.72,153.65,188.82]
[1751513580935,4.6663,153.72,153.67,3.72730861]
[1751513581834,6.5038,153.71,153.67,10.23240861]
[1751513582038,4.6663,153.72,153.67,3.72730861]
[1751513582341,6.5043,153.7,153.67,3.72730861]
[1751513583545,6.5043,153.7,153.67,10.23250861]
[1751513583842,6.5038,153.71,153.67,10.23250861]
[1751513585443,6.5041,153.7,153.67,10.23250861]
[1751513586539,2.3099,153.72,153.67,3.72730861]
[1751513586746,2.3279,153.76,153.69,3.72730861]
[1751513586946,2.3279,153.76,153.71,3.72730861]
[1751513587948,2.3033,153.77,153.73,3.72730861]
[1751513588146,2.3033,153.77,153.74,6.5021]
[1751513588446,19.63,153.76,153.74,6.5021]
[1751513596845,19.63,153.76,153.73,55.12990861]
[1751513597153,19.63,153.76,153.73,44.9]
[1751513597556,6.5022,153.75,153.73,44.9]
[1751513598156,19.63,153.76,153.73,44.9]
[1751513598554,6.5023,153.74,153.73,44.9]
[1751513598752,23.35730861,153.76,153.69,44.88]
[1751513599353,23.35730861,153.76,153.69,51.3841]
[1751513600655,6.503,153.73,153.7,6.504]
[1751513601955,6.5032,153.72,153.69,51.3843]
[1751513602253,23.35730861,153.76,153.69,44.88]
[1751513602454,6.5034,153.72,153.69,44.88]
[1751513602652,23.35730861,153.76,153.69,44.88]
[1751513603055,6.5034,153.72,153.69,51.3843]
[1751513604555,21.9227,153.76,153.69,44.88]
[1751513604754,25.65000861,153.76,153.69,44.88]
[1751513605053,6.5026,153.74,153.7,3.72730861]
[1751513605454,6.5026,153.74,153.7,10.23120861]
[1751513606552,2.3033,153.77,153.72,3.72730861]
[1751513606747,2.2047,153.78,153.74,3.72730861]
[1751513606947,8.7056,153.78,153.74,55.10930861]
[1751513607348,2.2047,153.78,153.74,48.60730861]
[1751513607552,2.2047,153.78,153.74,44.88]
[1751513608656,6.5013,153.77,153.74,44.88]
[1751513609057,2.2047,153.78,153.74,48.60730861]
[1751513609258,8.7056,153.78,153.74,55.10940861]
[1751513609559,8.7056,153.78,153.74,48.60730861]
[1751513610356,8.7056,153.78,153.74,55.10950861]
[1751513610550,6.5011,153.77,153.74,55.10950861]
[1751513612355,26.8,153.76,153.74,55.10950861]
[1751513613157,33.3015,153.76,153.74,48.60730861]
[1751513613357,26.8,153.76,153.74,48.60730861]
[1751513613660,26.8,153.76,153.74,55.10960861]
[1751513616161,26.8,153.76,153.75,6.5019]
[1751513622477,8.8184,153.82,153.74,48.60730861]
[1751513622670,8.8184,153.82,153.77,3.72730861]
[1751513622975,6.4995,153.81,153.78,6.5004]
[1751513623177,2.3194,153.82,153.77,3.72730861]
[1751513623775,6.5,153.8,153.77,10.22820861]
[1751513625477,6.5,153.8,153.77,6.5009]
[1751513625776,6.5,153.8,153.76,10.22860861]
[1751513625974,3.72730861,153.81,153.74,48.60730861]
[1751513626175,5.98890861,153.81,153.74,48.60730861]
[1751513626371,6.5002,153.79,153.75,6.5017]
[1751513626673,2.2616,153.81,153.75,6.5017]
[1751513626875,6.5005,153.79,153.76,6.5014]
[1751513627076,6.5005,153.79,153.74,48.60730861]
[1751513627780,6.5007,153.78,153.75,6.5017]
[1751513628677,6.5007,153.78,153.74,55.10940861]
[1751513628977,2.3241,153.8,153.74,44.88]
[1751513629482,11.19,153.79,153.75,3.72730861]
[1751513629678,17.6904,153.79,153.75,10.22900861]
[1751513629878,11.19,153.79,153.75,10.22900861]
[1751513630382,11.19,153.79,153.74,51.3821]
[1751513630880,6.5009,153.78,153.75,6.5018]
[1751513633687,17.6903,153.79,153.76,6.5015]
[1751513634086,11.19,153.79,153.77,3.72730861]
[1751513634287,101.91690278,153.83,153.77,3.72730861]
[1751513634491,3.72730861,153.9,153.81,3.72730861]
[1751513634791,3.72730861,153.9,153.83,3.72730861]
[1751513635292,51.4794,153.91,153.83,3.72730861]
[1751513635988,3.72730861,153.9,153.83,3.72730861]
[1751513636193,6.4973,153.86,153.83,3.72730861]
[1751513637185,6.497,153.87,153.83,10.22570861]